fUSD/lending_fUSD_20251028
["ID","MTS","AMOUNT","RATE_DAILY","PERIOD"]
[392559232,1761665440683,-7881.67258601,0.00029512,2]
[392559234,1761665440692,-200.0,0.0002953,2]
[392559235,1761665440701,-200.0,0.0002953,2]
[392559236,1761665440711,-166.66,0.0002953,2]
[392559237,1761665440721,-967.9606,0.00029541,2]
[392559238,1761665440730,-196.67,0.00029565,2]
[392559239,1761665440740,-360.0,0.00029565,2]
[392559240,1761665440749,-500.0,0.00029567,7]
[392559241,1761665440758,-1300.0,0.00029567,7]
[392559242,1761665440768,-609.84,0.00029569,14]
[392559243,1761665440777,-1000.0,0.00029572,2]
[392559244,1761665440787,-5492.44299647,0.00029578,3]
[392559245,1761665440796,-6625.0,0.00029588,2]
[392559246,1761665440805,-3491.0,0.00029588,2]
[392559247,1761665440815,-820.0,0.00029588,2]
[392559248,1761665440824,-352.177,0.00029588,2]
[392559249,1761665440835,-351.213,0.00029588,2]
[392559250,1761665440846,-6517.917,0.00029588,2]
[392559251,1761665440859,-758.468,0.00029588,2]
[392559252,1761665440875,-5492.44299647,0.0002959,3]
[392559253,1761665440888,-707.49019931,0.0002959,2]
[392559254,1761665440899,-900.0,0.000296,10]
[392559255,1761665440913,-478.25322465,0.00029607,2]
[392559256,1761665440926,-5492.44299647,0.00029608,3]
[392559257,1761665440939,-11213.80710558,0.00029618,2]
[392559258,1761665440954,-182.01,0.00029641,2]
[392559259,1761665440967,-500.0,0.00029645,15]
[392559260,1761665440979,-2000.0,0.00029645,2]
[392559261,1761665440990,-707.49019929,0.00029645,2]
[392559262,1761665441001,-5492.44299647,0.00029653,3]
[392559263,1761665441015,-989.84,0.00029653,2]
[392559264,1761665441029,-162.89945171,0.00029657,15]
[392559265,1761665441041,-500.0,0.00029663,7]
[392559266,1761665441055,-500.0,0.00029663,7]
[392559267,1761665441068,-500.0,0.00029663,7]
[392559268,1761665441085,-413.42,0.00029663,7]
[392559269,1761665441098,-500.0,0.00029663,7]
[392559270,1761665441111,-428.15,0.00029663,7]
[392559271,1761665441126,-500.0,0.00029663,7]
[392559272,1761665441139,-500.0,0.00029663,7]
[392559273,1761665441152,-500.0,0.00029663,7]
[392559274,1761665441165,-648.24,0.00029663,7]
[392559275,1761665441178,-150.0,0.00029663,7]
[392559276,1761665441191,-150.0,0.00029663,7]
[392559277,1761665441204,-151.07445959,0.00029663,7]
[392559278,1761665441217,-150.0,0.00029663,7]
[392559279,1761665441230,-150.48023033,0.00029663,7]
[392559280,1761665441242,-150.0,0.00029663,7]
[392559281,1761665441255,-251.33821867,0.00029663,7]
[392559282,1761665441266,-150.0,0.00029663,7]
[392559283,1761665441277,-150.0,0.00029663,7]
[392559284,1761665441292,-150.0,0.00029663,7]
[392559285,1761665441306,-150.96793118,0.00029663,7]
[392559286,1761665441316,-151.37609556,0.00029663,7]
[392559287,1761665441326,-150.0,0.00029663,7]
[392559288,1761665441339,-202.2740177,0.00029663,7]
[392559289,1761665441351,-500.0,0.00029663,7]
[392559290,1761665441365,-150.0,0.00029663,7]
[392559291,1761665441377,-150.0,0.00029663,7]
[392559292,1761665441388,-300.0,0.00029663,7]
[392559293,1761665441399,-300.0,0.00029669,2]
[392559294,1761665441411,-15061.3191749,0.0002967,3]
[392559295,1761665441422,-989.84,0.0002967,2]
[392559296,1761665441434,-4877.73095561,0.0002967,2]
[392559297,1761665441448,-501.71292426,0.00029673,5]
[392559298,1761665441459,-175.14364674,0.00029673,5]
[392559299,1761665441472,-151.0,0.0002968,31]
[392559300,1761665441483,-153.947872,0.0002968,31]
[392559301,1761665441500,-158.442357,0.0002968,31]
[392559302,1761665441511,-158.442357,0.0002968,31]
[392559303,1761665441522,-158.442357,0.0002968,31]
[392559304,1761665441534,-160.170288,0.0002968,31]
[392559305,1761665441546,-151.0,0.0002968,31]
[392559306,1761665441557,-151.0,0.0002968,31]
[392559307,1761665441570,-158.442357,0.0002968,31]
[392559308,1761665441581,-151.0,0.0002968,31]
[392559309,1761665441593,-151.0,0.0002968,31]
[392559310,1761665441604,-151.0,0.0002968,31]
[392559311,1761665441616,-151.0,0.0002968,31]
[392559312,1761665441627,-151.0,0.0002968,31]
[392559313,1761665441639,-151.0,0.0002968,31]
[392559314,1761665441650,-176.020624,0.0002968,31]
[392559315,1761665441662,-159.414309,0.0002968,31]
[392559316,1761665441678,-151.0,0.0002968,31]
[392559317,1761665441690,-282.68845,0.0002968,31]
[392559318,1761665441702,-151.0,0.0002968,31]
[392559319,1761665441715,-753.447165,0.0002968,31]
[392559320,1761665441726,-151.0,0.0002968,31]
[392559321,1761665441738,-151.0,0.0002968,31]
[392559322,1761665441752,-753.447165,0.0002968,31]
[392559323,1761665441763,-753.447165,0.0002968,31]
[392559324,1761665441777,-151.0,0.0002968,31]
[392559325,1761665441788,-753.447165,0.0002968,31]
[392559326,1761665441800,-301.450469,0.0002968,31]
[392559327,1761665441812,-151.0,0.0002968,31]
[392559328,1761665441823,-151.0,0.0002968,31]
[392559329,1761665441837,-151.000012,0.0002968,31]
[392559330,1761665441848,-151.0,0.0002968,31]
[392559331,1761665441860,-151.0,0.0002968,31]
[392559332,1761665441871,-151.0,0.0002968,31]
[392559333,1761665441884,-151.0,0.0002968,31]
[392559334,1761665441896,-151.0,0.0002968,31]
[392559335,1761665441907,-151.0,0.0002968,31]
[392559336,1761665441920,-151.0,0.0002968,31]
[392559337,1761665441932,-151.0,0.0002968,30]
[392559338,1761665441943,-151.0,0.0002968,31]
[392559339,1761665441955,-54924.4299647,0.0002968,3]
[392559340,1761665441968,-50204.3972497,0.0002968,3]
[392559341,1761665441981,-500.0,0.00029689,3]
[392559342,1761665441992,-313.20837644,0.00029689,3]
[392559343,1761665442004,-151.0,0.0002969,31]
[392559344,1761665442016,-151.0,0.0002969,31]
[392559345,1761665442027,-151.0,0.0002969,31]
[392559346,1761665442038,-151.0,0.0002969,31]
[392559347,1761665442050,-158.893013,0.0002969,31]
[392559348,1761665442061,-153.426762,0.0002969,31]
[392559349,1761665442073,-153.426762,0.0002969,31]
[392559350,1761665442086,-153.426762,0.0002969,31]
[392559351,1761665442097,-153.426762,0.0002969,31]
[392559352,1761665442109,-151.0,0.0002969,31]
[392559353,1761665442121,-151.0,0.0002969,31]
[392559354,1761665442133,-151.0,0.0002969,31]
[392559355,1761665442144,-151.0,0.0002969,31]
[392559356,1761665442155,-151.0,0.0002969,31]
[392559357,1761665442167,-151.0,0.0002969,31]
[392559358,1761665442178,-217.159041,0.0002969,31]
[392559359,1761665442189,-151.0,0.0002969,31]
[392559360,1761665442201,-197.455057,0.0002969,31]
[392559361,1761665442212,-151.0,0.0002969,31]
[392559362,1761665442223,-151.0,0.0002969,31]
[392559363,1761665442234,-151.0,0.0002969,31]
[392559364,1761665442246,-151.0,0.0002969,31]
[392559365,1761665442257,-285.85845,0.0002969,31]
[392559366,1761665442269,-151.0,0.0002969,31]
[392559367,1761665442280,-351.759361,0.0002969,31]
[392559368,1761665442292,-151.0,0.0002969,31]
[392559369,1761665442303,-351.759361,0.0002969,31]
[392559370,1761665442316,-151.0,0.0002969,31]
[392559371,1761665442327,-351.759361,0.0002969,31]
[392559372,1761665442341,-151.0,0.0002969,30]
[392559373,1761665442352,-351.759361,0.0002969,31]
[392559374,1761665442363,-151.0,0.0002969,31]
[392559375,1761665442374,-151.0,0.0002969,31]
[392559376,1761665442387,-153.486303,0.0002969,31]
[392559377,1761665442398,-154.202563,0.0002969,31]
[392559378,1761665442409,-214.775089,0.0002969,31]
[392559379,1761665442420,-154.66919,0.0002969,31]
[392559380,1761665442432,-151.0,0.0002969,31]
[392559381,1761665442445,-214.775089,0.0002969,31]
[392559382,1761665442455,-151.0,0.0002969,31]
[392559383,1761665442464,-151.0,0.0002969,31]
[392559384,1761665442473,-214.775089,0.0002969,31]
[392559385,1761665442483,-151.0,0.0002969,31]
[392559386,1761665442492,-214.775089,0.0002969,31]
[392559387,1761665442501,-151.0,0.0002969,31]
[392559388,1761665442511,-154.073704,0.0002969,31]
[392559389,1761665442520,-151.0,0.0002969,31]
[392559390,1761665442530,-151.0,0.0002969,31]
[392559391,1761665442540,-151.0,0.0002969,31]
[392559392,1761665442549,-187.938889,0.0002969,31]
[392559393,1761665442559,-151.0,0.0002969,31]
[392559394,1761665442568,-151.0,0.0002969,31]
[392559395,1761665442577,-151.0,0.0002969,31]
[392559396,1761665442589,-151.0,0.0002969,31]
[392559397,1761665442598,-151.0,0.0002969,31]
[392559398,1761665442607,-151.0,0.0002969,31]
[392559399,1761665442876,-153.80225,0.0002969,30]
[392559400,1761665442895,-151.0,0.0002969,31]
[392559401,1761665442911,-151.0,0.0002969,31]
[392559402,1761665442921,-151.0,0.0002969,31]
[392559403,1761665442932,-151.0,0.0002969,31]
[392559404,1761665442942,-154.735664,0.0002969,31]
[392559405,1761665442952,-151.0,0.0002969,31]
[392559406,1761665442963,-153.183339,0.0002969,31]
[392559407,1761665442972,-151.0,0.0002969,31]
[392559408,1761665442981,-151.0,0.0002969,31]
[392559409,1761665442991,-151.0,0.0002969,31]
[392559410,1761665443000,-151.0,0.0002969,31]
[392559411,1761665443009,-151.0,0.0002969,31]
[392559412,1761665443019,-151.0,0.0002969,31]
[392559413,1761665443029,-151.0,0.0002969,31]
[392559414,1761665443039,-151.0,0.0002969,31]
[392559415,1761665443047,-151.0,0.0002969,31]
[392559416,1761665443057,-151.907316,0.0002969,31]
[392559417,1761665443067,-151.0,0.0002969,31]
[392559419,1761665443077,-151.0,0.0002969,31]
[392559420,1761665443088,-151.0,0.0002969,31]
[392559421,1761665443097,-76894.2019506,0.0002969,3]
[392559422,1761665443106,-151.0,0.0002969,31]
[392559423,1761665443116,-151.0,0.0002969,31]
[392559424,1761665443126,-160654.071199,0.0002969,3]
[392559425,1761665443137,-151.0,0.0002969,31]
[392559426,1761665443152,-201.5646,0.0002969,31]
[392559427,1761665443163,-151.0,0.0002969,31]
[392559428,1761665443174,-154.49578,0.0002969,31]
[392559429,1761665443184,-151.0,0.0002969,31]
[392559430,1761665443193,-201.5646,0.0002969,31]
[392559431,1761665443204,-201.5646,0.0002969,31]
[392559432,1761665443213,-151.796693,0.0002969,31]
[392559433,1761665443222,-151.0,0.0002969,31]
[392559434,1761665443232,-301.949053,0.0002969,31]
[392559435,1761665443242,-151.0,0.0002969,31]
[392559436,1761665443251,-161.48555,0.0002969,31]
[392559437,1761665443260,-153.241216,0.0002969,31]
[392559438,1761665443269,-201.5646,0.0002969,31]
[392559439,1761665443278,-367.827965,0.0002969,31]
[392559440,1761665443288,-367.827965,0.0002969,31]
[392559441,1761665443297,-151.0,0.0002969,31]
[392559442,1761665443307,-367.827965,0.0002969,31]
[392559443,1761665443323,-153.910375,0.0002969,31]
[392559444,1761665443335,-151.0,0.0002969,31]
[392559445,1761665443344,-367.827965,0.0002969,31]
[392559446,1761665443353,-152.937621,0.0002969,30]
[392559447,1761665443362,-151.0,0.0002969,31]
[392559448,1761665443372,-151.0,0.0002969,31]
[392559449,1761665443381,-152.937621,0.0002969,30]
[392559450,1761665443390,-151.0,0.0002969,31]
[392559451,1761665443399,-151.0,0.0002969,14]
[392559452,1761665443408,-151.0,0.0002969,14]
[392559453,1761665443417,-152.937621,0.0002969,30]
[392559454,1761665443426,-151.0,0.0002969,31]
[392559455,1761665443435,-151.0,0.0002969,14]
[392559456,1761665443444,-152.05111,0.0002969,31]
[392559457,1761665443453,-152.937621,0.0002969,30]
[392559458,1761665443463,-151.0,0.0002969,14]
[392559459,1761665443472,-151.817482,0.0002969,31]
[392559460,1761665443483,-151.0,0.0002969,31]
[392559461,1761665443493,-151.0,0.0002969,31]
[392559462,1761665443503,-151.0,0.0002969,31]
[392559463,1761665443515,-151.0,0.0002969,31]
[392559464,1761665443524,-158.442357,0.0002969,31]
[392559465,1761665443535,-158.442357,0.0002969,31]
[392559466,1761665443545,-158.442357,0.0002969,31]
[392559467,1761665443554,-151.0,0.0002969,31]
[392559468,1761665443564,-151.0,0.0002969,31]
[392559469,1761665443574,-158.442357,0.0002969,31]
[392559470,1761665443585,-151.0,0.0002969,31]
[392559471,1761665443594,-151.0,0.0002969,31]
[392559472,1761665443603,-151.0,0.0002969,31]
[392559474,1761665443614,-151.0,0.0002969,31]
[392559475,1761665443623,-151.0,0.0002969,31]
[392559476,1761665443633,-151.0,0.0002969,31]
[392559477,1761665443643,-151.0,0.0002969,31]
[392559478,1761665443656,-151.0,0.0002969,31]
[392559480,1761665443666,-753.447165,0.0002969,31]
[392559481,1761665443679,-186.203186,0.0002969,31]
[392559482,1761665443689,-288.225333,0.0002969,31]
[392559483,1761665443699,-753.447165,0.0002969,31]
[392559484,1761665443708,-753.447165,0.0002969,31]
[392559485,1761665443718,-753.447165,0.0002969,31]
[392559486,1761665443727,-151.0,0.0002969,31]
[392559487,1761665443736,-151.0,0.0002969,31]
[392559488,1761665443745,-151.0,0.0002969,31]
[392559489,1761665443756,-151.0,0.0002969,31]
[392559490,1761665443765,-151.0,0.0002969,31]
[392559491,1761665443774,-151.0,0.0002969,31]
[392559492,1761665443784,-151.0,0.0002969,31]
[392559493,1761665443793,-295.428246,0.0002969,31]
[392559494,1761665443802,-151.0,0.0002969,30]
[392559495,1761665443812,-224.1246753,0.0002969,2]
[392559496,1761665443821,-257.962133,0.0002969,31]
[392559497,1761665443831,-151.0,0.0002969,31]
[392559498,1761665443843,-151.0,0.0002969,31]
[392559499,1761665443852,-151.0,0.0002969,31]
[392559500,1761665443862,-151.0,0.0002969,31]
[392559501,1761665443871,-151.0,0.0002969,31]
[392559502,1761665443881,-151.0,0.0002969,31]
[392559503,1761665443891,-151.0,0.0002969,31]
[392559504,1761665443902,-151.0,0.0002969,31]
[392559505,1761665443911,-151.0,0.0002969,30]
[392559506,1761665443920,-736.89584246,0.0002969,2]
[392559507,1761665443929,-1000.0,0.0002969,2]
[392559508,1761665443939,-500.0,0.00029699,3]
[392559509,1761665443949,-300000.0,0.000297,2]
[392559510,1761665443958,-151.0,0.000297,31]
[392559511,1761665443967,-151.0,0.000297,15]
[392559512,1761665443976,-5000.0,0.000297,2]
[392559513,1761665443986,-151.0,0.000297,31]
[392559514,1761665443995,-151.0,0.000297,31]
[392559515,1761665444005,-151.0,0.000297,31]
[392559516,1761665444015,-151.0,0.000297,31]
[392559517,1761665444025,-151.0,0.000297,31]
[392559518,1761665444034,-151.0,0.000297,31]
[392559519,1761665444044,-151.0,0.000297,31]
[392559520,1761665444053,-151.0,0.000297,31]
[392559521,1761665444063,-151.0,0.000297,31]
[392559522,1761665444071,-155.019591,0.000297,31]
[392559523,1761665444081,-156.124159,0.000297,31]
[392559524,1761665444095,-151.0,0.000297,31]
[392559525,1761665444104,-151.0,0.000297,31]
[392559526,1761665444113,-151.0,0.000297,31]
[392559527,1761665444122,-151.0,0.000297,31]
[392559528,1761665444131,-153.426762,0.000297,31]
[392559529,1761665444141,-153.426762,0.000297,31]
[392559530,1761665444150,-153.426762,0.000297,31]
[392559531,1761665444160,-153.426762,0.000297,31]
[392559532,1761665444170,-151.0,0.000297,31]
[392559533,1761665444179,-151.0,0.000297,31]
[392559534,1761665444189,-151.0,0.000297,31]
[392559535,1761665444198,-151.0,0.000297,31]
[392559536,1761665444207,-151.0,0.000297,31]
[392559537,1761665444216,-155.509095,0.000297,31]
[392559538,1761665444226,-197.455057,0.000297,31]
[392559539,1761665444235,-197.455057,0.000297,31]
[392559540,1761665444245,-151.0,0.000297,31]
[392559541,1761665444255,-151.0,0.000297,31]
[392559542,1761665444265,-151.0,0.000297,31]
[392559543,1761665444274,-151.0,0.000297,31]
[392559544,1761665444283,-286.572705,0.000297,31]
[392559545,1761665444292,-351.759361,0.000297,31]
[392559546,1761665444302,-151.0,0.000297,31]
[392559547,1761665444311,-351.759361,0.000297,31]
[392559548,1761665444320,-151.0,0.000297,31]
[392559549,1761665444330,-351.759361,0.000297,31]
[392559550,1761665444341,-151.0,0.000297,30]
[392559551,1761665444351,-351.759361,0.000297,31]
[392559552,1761665444360,-164.605312,0.000297,31]
[392559553,1761665444370,-151.0,0.000297,31]
[392559554,1761665444379,-214.775089,0.000297,31]
[392559555,1761665444389,-191.010954,0.000297,31]
[392559556,1761665444399,-214.775089,0.000297,31]
[392559557,1761665444408,-153.147068,0.000297,31]
[392559558,1761665444417,-151.0,0.000297,31]
[392559559,1761665444427,-214.775089,0.000297,31]
[392559560,1761665444436,-151.0,0.000297,31]
[392559561,1761665444446,-214.775089,0.000297,31]
[392559562,1761665444456,-151.0,0.000297,31]
[392559563,1761665444466,-151.0,0.000297,31]
[392559564,1761665444475,-151.0,0.000297,31]
[392559565,1761665444485,-151.0,0.000297,31]
[392559566,1761665444495,-151.0,0.000297,31]
[392559567,1761665444505,-151.0,0.000297,31]
[392559568,1761665444514,-1400.0,0.000297,10]
[392559569,1761665444523,-166.314309,0.000297,31]
[392559570,1761665444533,-151.0,0.000297,31]
[392559571,1761665444542,-200.157603,0.000297,31]
[392559572,1761665444553,-151.0,0.000297,31]
[392559573,1761665444562,-151.0,0.000297,31]
[392559574,1761665444571,-151.0,0.000297,31]
[392559575,1761665444582,-151.0,0.000297,31]
[392559576,1761665444593,-151.0,0.000297,31]
[392559577,1761665444603,-151.0,0.000297,31]
[392559578,1761665444613,-151.0,0.000297,31]
[392559579,1761665444624,-151.0,0.000297,31]
[392559580,1761665444634,-151.0,0.000297,31]
[392559581,1761665444644,-151.0,0.000297,31]
[392559582,1761665444654,-151.0,0.000297,31]
[392559583,1761665444663,-151.0,0.000297,31]
[392559584,1761665444676,-151.0,0.000297,31]
[392559585,1761665444686,-151.0,0.000297,31]
[392559586,1761665444695,-151.0,0.000297,31]
[392559587,1761665444705,-151.0,0.000297,31]
[392559588,1761665444714,-151.0,0.000297,31]
[392559589,1761665444723,-151.0,0.000297,31]
[392559590,1761665444734,-201.5646,0.000297,31]
[392559591,1761665444744,-151.0,0.000297,31]
[392559592,1761665444754,-185.347716,0.000297,31]
[392559593,1761665444764,-201.5646,0.000297,31]
[392559594,1761665444773,-201.5646,0.000297,31]
[392559595,1761665444782,-151.0,0.000297,31]
[392559596,1761665444792,-160.201008,0.000297,31]
[392559597,1761665444802,-201.5646,0.000297,31]
[392559598,1761665444811,-367.827965,0.000297,31]
[392559599,1761665444820,-367.827965,0.000297,31]
[392559600,1761665444830,-151.0,0.000297,31]
[392559601,1761665444841,-367.827965,0.000297,31]
[392559602,1761665444851,-151.0,0.000297,31]
[392559603,1761665444861,-367.827965,0.000297,31]
[392559604,1761665444871,-152.937621,0.000297,30]
[392559605,1761665444880,-151.0,0.000297,31]
[392559606,1761665444889,-152.937621,0.000297,30]
[392559607,1761665444899,-151.0,0.000297,31]
[392559608,1761665444908,-151.0,0.000297,14]
[392559609,1761665444917,-151.0,0.000297,31]
[392559610,1761665444927,-151.0,0.000297,14]
[392559611,1761665444936,-152.937621,0.000297,30]
[392559612,1761665444946,-157.51247,0.000297,31]
[392559613,1761665444955,-151.0,0.000297,14]
[392559614,1761665444965,-152.937621,0.000297,30]
[392559615,1761665444974,-176.873,0.000297,14]
[392559616,1761665444984,-151.0,0.000297,31]
[392559617,1761665444993,-151.0,0.000297,31]
[392559618,1761665445003,-158.932132,0.000297,31]
[392559619,1761665445013,-151.0,0.000297,31]
[392559620,1761665445023,-158.442357,0.000297,31]
[392559621,1761665445032,-158.442357,0.000297,31]
[392559622,1761665445041,-158.442357,0.000297,31]
[392559623,1761665445051,-151.0,0.000297,31]
[392559624,1761665445061,-151.0,0.000297,31]
[392559625,1761665445069,-158.442357,0.000297,31]
[392559626,1761665445080,-151.0,0.000297,31]
[392559627,1761665445092,-151.0,0.000297,31]
[392559628,1761665445101,-151.0,0.000297,31]
[392559629,1761665445110,-151.0,0.000297,31]
[392559630,1761665445119,-151.0,0.000297,31]
[392559631,1761665445128,-151.0,0.000297,31]
[392559632,1761665445139,-151.0,0.000297,31]
[392559633,1761665445148,-151.0,0.000297,31]
[392559634,1761665445157,-753.447165,0.000297,31]
[392559635,1761665445167,-753.447165,0.000297,31]
[392559636,1761665445176,-753.447165,0.000297,31]
[392559637,1761665445185,-753.447165,0.000297,31]
[392559638,1761665445196,-151.0,0.000297,31]
[392559639,1761665445206,-151.0,0.000297,31]
[392559640,1761665445215,-151.0,0.000297,31]
[392559641,1761665445226,-169.994138,0.000297,31]
[392559642,1761665445235,-151.0,0.000297,31]
[392559643,1761665445244,-151.0,0.000297,31]
[392559644,1761665445253,-153.843666,0.000297,30]
[392559645,1761665445262,-707.49019929,0.000297,2]
[392559646,1761665445272,-151.0,0.000297,31]
[392559647,1761665445280,-151.0,0.000297,31]
[392559648,1761665445289,-184.959441,0.000297,31]
[392559649,1761665445298,-150.0,0.0002973,2]
[392559650,1761665445307,-150.0,0.0002973,2]
[392559651,1761665445316,-7881.67258601,0.00029732,2]
[392559652,1761665445325,-196.67,0.00029757,2]
[392559653,1761665445336,-502.35275358,0.00029773,5]
[392559654,1761665445345,-780.9578101,0.00029774,2]
[392559655,1761665445354,-500.0,0.0002978,3]
[392559656,1761665445363,-500.0,0.00029789,3]
[392559657,1761665445371,-500.0,0.00029789,3]
[392559658,1761665445380,-500.0,0.00029789,3]
[392559659,1761665445389,-500.0,0.00029789,3]
[392559660,1761665445398,-549.09155955,0.00029789,3]
[392559661,1761665445407,-500.0,0.00029789,3]
[392559662,1761665445417,-200.71199652,0.0002979,2]
[392559663,1761665445426,-151.0,0.00029791,31]
[392559664,1761665445435,-151.0,0.00029791,31]
[392559665,1761665445444,-153.967062,0.00029791,31]
[392559666,1761665445453,-151.0,0.00029791,31]
[392559667,1761665445462,-151.0,0.00029791,31]
[392559668,1761665445471,-151.0,0.00029791,31]
[392559669,1761665445480,-151.0,0.00029791,31]
[392559670,1761665445489,-157.780969,0.00029791,31]
[392559671,1761665445499,-151.0,0.00029791,31]
[392559672,1761665445509,-500.0,0.00029799,3]
[392559673,1761665445519,-500.0,0.00029799,3]
[392559674,1761665445528,-500.0,0.00029799,3]
[392559675,1761665445538,-500.0,0.00029799,3]
[392559676,1761665445547,-513.3628881,0.00029799,3]
[392559677,1761665445556,-1000.0,0.00029799,7]
[392559678,1761665445567,-500.0,0.00029799,3]
[392559679,1761665445577,-150.0,0.000298,7]
[392559680,1761665445589,-150.0,0.000298,7]
[392559681,1761665445598,-150.0,0.000298,7]
[392559682,1761665445607,-150.0,0.000298,7]
[392559683,1761665445617,-200.0,0.000298,7]
[392559684,1761665445626,-150.0,0.000298,7]
[392559685,1761665445635,-500.0,0.000298,7]
[392559686,1761665445644,-150.0,0.000298,7]
[392559687,1761665445654,-300.0,0.000298,7]
[392559688,1761665445665,-11066.68371992,0.000298,2]
[392559689,1761665446436,-347.65681638,0.00028122,2]
[392559690,1761665446448,-55.7484817,0.00028122,2]
[392559691,1761665446458,-274.0515183,0.00029653,2]
[392559692,1761665446524,-2.43638414,0.00029653,2]
[392559693,1761665446534,-151.0,0.0002969,31]
[392559694,1761665446544,-151.0,0.0002969,31]
[392559695,1761665446554,-151.0,0.000297,31]
[392559696,1761665446563,-755.76361586,0.000298,2]
[392559697,1761665446574,-26553.73476367,0.000298,2]
[392559698,1761665446586,-153.669408,0.000298,31]
[392559699,1761665446595,-159.670909,0.000298,31]
[392559700,1761665446604,-166.510048,0.000298,31]
[392559701,1761665446614,-204.290073,0.000298,31]
[392559702,1761665446623,-151.0,0.000298,31]
[392559703,1761665446633,-151.0,0.000298,31]
[392559704,1761665446643,-152.860285,0.000298,31]
[392559705,1761665446653,-155.957737,0.000298,31]
[392559706,1761665446665,-151.0,0.000298,31]
[392559707,1761665446679,-151.0,0.000298,31]
[392559708,1761665446688,-151.0,0.000298,31]
[392559709,1761665446700,-255.796323,0.000298,31]
[392559710,1761665446710,-151.0,0.000298,31]
[392559711,1761665446721,-151.0,0.000298,31]
[392559713,1761665446731,-154.410962,0.000298,31]
[392559715,1761665446740,-151.0,0.000298,31]
[392559716,1761665446752,-151.0,0.000298,31]
[392559717,1761665446763,-151.0,0.000298,31]
[392559718,1761665446772,-151.0,0.000298,31]
[392559719,1761665446783,-206.354804,0.000298,31]
[392559720,1761665446792,-206.354804,0.000298,31]
[392559721,1761665446802,-206.354804,0.000298,31]
[392559722,1761665446811,-206.354804,0.000298,31]
[392559723,1761665446820,-151.0,0.000298,31]
[392559724,1761665446830,-151.0,0.000298,31]
[392559725,1761665446841,-1140.871455,0.000298,31]
[392559726,1761665446850,-151.0,0.000298,31]
[392559727,1761665446859,-1140.871455,0.000298,31]
[392559728,1761665446869,-1140.871455,0.000298,31]
[392559729,1761665446879,-151.0,0.000298,31]
[392559730,1761665446888,-1140.871455,0.000298,31]
[392559731,1761665446898,-151.0,0.000298,31]
[392559732,1761665446908,-151.0,0.000298,31]
[392559733,1761665446917,-151.0,0.000298,31]
[392559734,1761665446926,-153.77117,0.000298,31]
[392559735,1761665446936,-173.693699,0.000298,31]
[392559736,1761665446945,-173.693699,0.000298,31]
[392559737,1761665446955,-173.693699,0.000298,31]